Cogmind - Beta 13 @@@ ROGUE MODE // 2024.04.01 @ 00:14:59 Player: SunnyVampire Result: Destroyed by 5E-32I(R) with Subdweller Laser Performance ------------- Evolutions (0) 0 Regions Visited (2) 400 Robots Destroyed (19) 95 Value Destroyed (424) 424 Prototype IDs (2) 40 Alien Tech Used (0) 0 Bonus (0) 0 TOTAL SCORE: 959 Bonus ------- None Cogmind --------- Core Integrity 0/250 Matter 295/300 Energy 246/250 System Corruption 0% Temperature Cool (20) Movement Treading (240) Ox1 Location -10/Subcaves Parts ------- > --- POWER (1) -------- Ion Engine > --- PROPULSION (2) --- Light Treads > --- UTILITY (2) ------ Large Storage Unit Visual Processing Unit > --- WEAPON (2) ------- Small Laser Small Laser > --- INVENTORY (15) --- Ion Engine Light Treads Aluminum Leg Aluminum Leg Improved Heat Sink Large Storage Unit Terrain Scanner Terrain Scan Processor ECM Suite ECM Suite Weapon Shielding Light Armor Plating Scrap Shield Particle Gun Peak State ------------ > --- POWER ------------ Ion Engine > --- PROPULSION ------- Light Treads Light Treads > --- UTILITY ---------- Large Storage Unit Visual Processing Unit > --- WEAPON ----------- Small Laser Small Laser > --- INVENTORY -------- Ion Engine Light Treads Aluminum Leg Aluminum Leg Improved Heat Sink Large Storage Unit Terrain Scanner Terrain Scan Processor ECM Suite ECM Suite Weapon Shielding Scrap Shield Small Laser Particle Gun [Rating: 10] Favorites ----------- Power Ion Engine Engine Ion Engine Propulsion Light Treads Treads Light Treads Utility Large Storage Unit Storage Large Storage Unit Processor Visual Processing Unit Weapon Small Laser Energy Gun Small Laser Ballistic Gun Assault Rifle Build | -11 -10 -10 ------- Run | Yrd Mat Sub Slots Evolved . | . . . Power . | . . . Propulsion . | . . . Utility . | . . . Weapon . | . . . Parts Attached 14 | 6 7 1 Power 2 | 1 1 . Engine 2 | 1 1 . Core . | . . . Reactor . | . . . Propulsion 3 | 2 1 . Treads 3 | 2 1 . Leg . | . . . Wheel . | . . . Hover . | . . . Flight . | . . . Utility 4 | 1 3 . Device . | . . . Storage 3 | 1 2 . Processor 1 | . 1 . Hackware . | . . . Protection . | . . . Artifact . | . . . Weapon 5 | 2 2 1 Energy Gun 3 | . 2 1 Energy Cannon . | . . . Ballistic Gun 2 | 2 . . Ballistic Cannon . | . . . Launcher . | . . . Special Weapon . | . . . Impact Weapon . | . . . Slashing Weapon . | . . . Piercing Weapon . | . . . Special Melee Weapon . | . . . Unidentified Prototypes . | . . . Parts Lost 5 | . 4 1 Power 1 | . 1 . Propulsion 2 | . 1 1 Utility . | . . . Weapon 2 | . 2 . Highest Loss Streak 2 | . 2 1 To Critical Strikes . | . . . Average Slot Usage (%) 88 | . 86 100 Engine 14 | . 14 14 Treads 27 | . 27 28 Storage 14 | . 14 14 Processor 3 | . 2 14 Energy Gun 12 | . 11 28 Ballistic Gun 15 | . 16 . Naked Turns . | . . . Heaviest Build 28 | 13 28 27 Greatest Support 40 | 40 40 40 Greatest Overweight (x) 1 | . 1 . Average Overweight (x) . | . . . Largest Inventory Capacity 15 | 8 15 15 Average Capacity 12 | 6 12 15 Most Carried 15 | . 15 15 Average Carried 8 | . 8 14 Final Capacity 15 | 8 15 15 Final Carried 15 | . 15 15 Class Distribution -------------------- 83% | Mutant 16% | Scavenger-Mutant Dominant Class ---------------- Mutant | -10/Materials Scavenger-Mutant | -10/Subcaves Resources | -11 -10 -10 ----------- Run | Yrd Mat Sub Matter Collected 534 | 142 392 . Remotely . | . . . Salvage Created 739 | 94 645 . Parts 41 | 2 39 . Haulers Intercepted 2 | . 2 . Recyclers Shooed 1 | . 1 . Parts Field Recycled . | . . . Retrieved Matter . | . . . Parts Self-Destructed 1 | . . 1 Prevented . | . . . Kills | -11 -10 -10 ------- Run | Yrd Mat Sub Combat Hostiles Destroyed 10 | . 10 . Guns 10 | . 10 . Classes Destroyed 6 | 1 5 . Worker 1 | . 1 . Hauler 2 | . 2 . Recycler 3 | 1 2 . Operator 1 | . 1 . Watcher 2 | . 2 . Grunt 10 | . 10 . Best Kill Streak 8 | 1 8 . Combat Bots Only 3 | . 3 . Max Kills in Single Turn 1 | 1 1 . Gunslinging . | . . . Exploded . | . . . Melee . | . . . Uniques/NPCs Destroyed . | . . . Combat | -11 -10 -10 -------- Run | Yrd Mat Sub Hostile Shots Fired 118 | . 108 10 Missed 39 | . 37 2 Damage Taken 1021 | . 841 180 Core 256 | . 213 43 Absorbed by Shields . | . . . Core Remaining (%) 100 | 100 . . Volleys Fired 75 | 7 68 . Largest 2 | 2 2 . Hottest 80 | 40 80 . Shots Fired 143 | 14 129 . Gun 143 | 14 129 . Cannon . | . . . Launcher . | . . . Special . | . . . Kinetic 110 | 14 96 . Thermal 33 | . 33 . Explosive . | . . . Electromagnetic . | . . . Robot Hit Streak 8 | 8 8 . Robot Miss Streak 2 | 1 2 . Penetration Max . | . . . Secondary Targets 4 | . 4 . Max Gunslinging Chain 1 | . 1 . Shots Hit Robots 92 | 11 81 . Core Hits 40 | 3 37 . Critical Kills . | . . . Critical Parts Destroyed . | . . . Critical Strikes . | . . . Melee Attacks . | . . . Impact . | . . . Slashing . | . . . Piercing . | . . . Sneak Attacks . | . . . Combat Hostiles . | . . . Follow-up Attacks . | . . . Damage Inflicted 1138 | 119 1019 . Guns 1106 | 117 989 . Cannons . | . . . Explosions . | . . . Melee . | . . . Ramming 32 | 2 30 . Kinetic 887 | 117 770 . Thermal 219 | . 219 . Explosive . | . . . Electromagnetic . | . . . Impact . | . . . Slashing . | . . . Piercing . | . . . Highest Corruption . | . . . Average Corruption . | . . . Corruption Purged . | . . . Corruption Blocked . | . . . Overload Shots . | . . . Overflow Damage . | . . . Projectiles . | . . . Explosions . | . . . Melee . | . . . Knockbacks 1 | . 1 . Impact 1 | . 1 . Kinetic . | . . . Secondary . | . . . Self-Inflicted Damage . | . . . Shots . | . . . Rammed 12 | 1 11 . Targets Rammed 13 | 1 12 . Kicked . | . . . Crushed 1 | . 1 . Highest Temperature 84 | . 84 . Average Temperature 25 | . 25 . Received Heat Transfer 531 | . 483 48 Siege Activations . | . . . Robots Corrupted . | . . . Combat Hostiles . | . . . Parts Fried . | . . . Impact Corruptions . | . . . Robots Melted . | . . . Combat Hostiles . | . . . Parts Melted 1 | . 1 . Heat Transferred 500 | . 500 . Parts Sabotaged . | . . . Parts Stolen . | . . . Parts Stripped . | . . . Power Chain Reactions . | . . . Alert | -11 -10 -10 ------- Run | Yrd Mat Sub Peak Influence 204 | 5 204 . Initial 3 | . 3 . Average 30 | 1 32 . Maximum Alert Level 1 | . 1 . Low Security (%) 99 | 100 99 . Level 1 . | . . . Level 2 . | . . . Level 3 . | . . . Level 4 . | . . . Level 5 . | . . . High Security . | . . . Max Security . | . . . Squads Dispatched 4 | . 4 . Investigation 1 | . 1 . Extermination . | . . . Reinforcement 3 | . 3 . Assault . | . . . Garrison . | . . . Intercept . | . . . Searches Triggered . | . . . Construction Impeded . | . . . Haulers Reinforced . | . . . Active Scanning Responses . | . . . Cargo Convoy Interrupts . | . . . Stealth | -11 -10 -10 --------- Run | Yrd Mat Sub Distress Signals 3 | . 3 . Communications Jammed . | . . . Distress Signals . | . . . Times Spotted 28 | . 21 7 Peak Tracking Total 7 | . 5 7 Tactical Retreats 1 | . 1 . Traps | -11 -10 -10 ------- Run | Yrd Mat Sub Traps Triggered . | . . . Indirectly . | . . . Trap Hack Attempts . | . . . Triggered . | . . . Disarmed . | . . . Reprogrammed . | . . . Reused . | . . . Traps Extracted . | . . . Installed . | . . . Triggered . | . . . Machines | -11 -10 -10 ---------- Run | Yrd Mat Sub Machines Disabled . | . . . Max in Single Turn . | . . . Machines Repaired . | . . . Machines Dismantled . | . . . Machines Sabotaged . | . . . Overloaded Fab Kills . | . . . Hacking | -11 -10 -10 --------- Run | Yrd Mat Sub Machines Accessed 3 | . 2 1 Terminals 2 | . 2 . Fabricators . | . . . Repair Stations . | . . . Recycling Units . | . . . Scanalyzers . | . . . Garrison Access . | . . . Total Hacks 8 | . 7 1 Successful 4 | . 3 1 Failed 4 | . 4 . Catastrophic . | . . . Database Lockouts . | . . . Manual 2 | . . 2 Terminals 7 | . 7 . Fabricators . | . . . Repair Stations . | . . . Recycling Units . | . . . Scanalyzers . | . . . Garrison Access . | . . . Terminal Hacks 4 | . 3 1 Record 1 | . . 1 Prototype ID Bank 1 | . 1 . Alert Level 1 | . 1 . Zone Layout 1 | . 1 . Fabricator Hacks . | . . . Repair Station Hacks . | . . . Recycling Unit Hacks . | . . . Scanalyzer . | . . . Garrison Access Hacks . | . . . Unauthorized Hacks . | . . . Terminals . | . . . Fabricators . | . . . Repair Stations . | . . . Recycling Units . | . . . Scanalyzers . | . . . Garrison Access . | . . . Data Cores Recovered . | . . . Used . | . . . Hacking Detections 1 | . 1 . Full Trace Events 1 | . 1 . Feedback Events . | . . . Feedback Blocked . | . . . Robot Schematics Acquired . | . . . Robots Built . | . . . Authchips . | . . . Time . | . . . Total Robot Build Rating . | . . . Part Schematics Acquired . | . . . Parts Built . | . . . Authchips . | . . . Time . | . . . Total Part Build Rating . | . . . Parts Repaired . | . . . Time . | . . . Parts Recycled . | . . . Recycled Matter . | . . . Retrieved Matter . | . . . Retrieved Components . | . . . Parts Scanalyzed . | . . . Part Schematics Acquired . | . . . Parts Damaged . | . . . Bothacking | -11 -10 -10 ------------ Run | Yrd Mat Sub Used RIF Installer . | . . . Robots Hacked . | . . . Non-combat . | . . . Combat . | . . . Robot Hacks Applied . | . . . Relay Couplers Released . | . . . Fabnet Peak Effective % . | . . . Robots Rewired . | . . . Allies Hacked . | . . . Hacks Repelled . | . . . Allies | -11 -10 -10 -------- Run | Yrd Mat Sub Total Allies . | . . . Largest Group . | . . . Highest-Rated Group . | . . . Highest-Rated Ally . | . . . Total Orders . | . . . Ally Attacks . | . . . Total Damage . | . . . Kills . | . . . Allies Corrupted . | . . . Allies Melted . | . . . Intel | -11 -10 -10 ------- Run | Yrd Mat Sub Robot Analysis Total . | . . . Derelict Logs Recovered . | . . . Drone Launches . | . . . Drone Recoveries . | . . . Exploration | -11 -10 -10 ------------- Run | Yrd Mat Sub Turns Passed 1467 | 83 1257 127 Spaces Moved 741 | 38 626 77 Core 6 | 6 . . Treads 735 | 32 626 77 Legs . | . . . Wheels . | . . . Hover . | . . . Flight . | . . . Fastest Speed 50 | 50 160 160 Average Speed 159 | 142 160 160 Slowest Speed 240 | 160 240 160 Overloaded Moves . | . . . Propulsion Burnouts . | . . . Robots Hopped . | . . . Cave-ins Triggered . | . . . Exploration Rate (%) 28 | 4 73 9 Regions Visited 2 Branch Regions 1 Pre-discovered Areas . | . . . Known Exits Taken . | . . . Unknown Exits Taken 2 | 1 1 . Scrap Searched . | . . . Spaces Dug . | . . . Terrain Destroyed . | . . . Melee . | . . . Projectile . | . . . AOE . | . . . Terrain Rammed . | . . . Walls Destroyed . | . . . Machines Disabled . | . . . Actions | -11 -10 -10 --------- Run | Yrd Mat Sub Total 887 | 51 753 83 Wait 11 | . 11 . Move 739 | 37 625 77 Hop . | . . . Pick Up 25 | . 23 2 Fast Attach 8 | 6 2 . Attach 6 | . 5 1 Detach 2 | . 2 . Swap . | . . . Drop 8 | . 5 3 Fire 75 | 7 68 . Melee . | . . . Ram . | . . . Kick . | . . . Crush 13 | 1 12 . Escape Stasis . | . . . Rewire . | . . . Trap . | . . . Miscellaneous . | . . . Route ------- -11/Scrapyard -10/Materials (discovered 5 exits: [*Mat x2] / [*Min x2] / *Sub) -10/Subcaves History --------- Turn | Location | Event 6 | -11/Scrapyard | Discovered new exit (range 15) 84 | -11/Scrapyard | Entered Materials 310 | -10/Materials | Build established: Mutant 567 | -10/Materials | Discovered new exit (range 9) 722 | -10/Materials | Discovered new exit (range 4) 790 | -10/Materials | Discovered new exit (range 10) 974 | -10/Materials | Discovered new exit (range 6) 1078 | -10/Materials | Core integrity fell below 50% 1120 | -10/Materials | Core integrity fell below 20% 1200 | -10/Materials | Discovered new exit (range 11) 1341 | -10/Materials | Entered Subcaves 1421 | -10/Subcaves | Visited Clippyterm 1461 | -10/Subcaves | Ambushed by swarm of Subdwellers 1463 | -10/Subcaves | Ambushed by Subdwellers from Twisted Machinery 1463 | -10/Subcaves | Ambushed by Subdwellers from Twisted Machinery 1468 | -10/Subcaves | Destroyed by 5E-32I(R) with Subdweller Laser Last Messages --------------- data I collect to feed it, half the time it still manages to suggest unhelpful sample queries and responses. --DD-NU8 B8-1UG(R) comes tumbling into view. 01461_ 46-JER(h): "The Subs are coming!" 01462_ WD-ZSL(g): "Sorry we're late! Had another grouchy Sub to deal with. Who's the new fellow?" 01463_ HV Slug penetrates Wall. 01463_ 04-QLC(R) angrily emerges from the Twisted Machinery. 01463_ I5-IYU(R) angrily emerges from the Twisted Machinery. 01464_ V5-Y79(R) emerges from the Twisted Machinery. 01466_ AJ-9X9(R) emerges from the Twisted Machinery. 01466_ B8-1UG(R) suffers critical hit (Destroy). 01467_ B8-1UG(R) destroyed. 01468_ Lgt. Treads destroyed. Map ----- +----------------------------------------------------+ | ????????????????????????????????????????? | | ????????????????????????????????????????? | | ????????????????????????????????????????? | | ????????????????????????????????????????? | | ????????????????????????????????????????? | | ????????????????????????????????????????? | | ????????????????????????????????????????? | | ????????????????????????????????????????? | | ????????????????????????????????????????? | | ????????????????????????????????????????? | | ????????????????????????????????????????? | | ????????????????????????????????????????? | | ????????????????????????????????????????? | | ????????????????????????????????????????? | | ????????????????????????????????????????? | | ????????????????????????????????????????? | | ????????????????????????????????????????? | | ????????????????????????????????????????? | | ?????????????????????????"#?????????????? | | ?????????????????#####?## ##????? #?????? | | ?????????????????# ## #??? #?????? | | ????????????????? ## ?????? | | ?????????????????# RRR ?????? | | ????????????????## R #?? #???? | | ???????????????## &R % #?? ##??? | | ??????????????##@ &%&R" #? #?## | | ??????????????# ##"# ####??# # | | ??????????????## #???????#### | | ???????????????#; h #??????# # | | ???????????????#### #####??# | | ?????????????????# # #?## | | ?????????????????# #?## ???? | | ?????????????????## ### #??????? | | ??????????????????### # #???????? | | ????????????????????# g #????????? | | ????????????????????# ##????????? | | ???????????????###########g #?????????? | | ???????????????#"""""#?### g ##????????? | | ???????????????#""X""### ###??????? | | ???????????????#" "## ##??###? | | ???????????????### ### #?# ## | | ???????????????### ## ##? # | | ???????????????# # ## ## # ### # | | ???????????????# ##### #? | | ??????????????## ##??## #? | | ??????????????# #??# # # # #? | | ??????????????## ####??###### # #? | | ???????????????# #?????????## #? | | ???????????????# #????????## #? | | ???????????????# #???????## #? | +----------------------------------------------------+ Best States ------------- Heat Dissipation 25 Energy Generation 10 Energy Capacity 250 Matter Stores 300 Matter Capacity 300 Sight Range 18 Terrain Scan Density 10 Evasion (%) 40 Recoil Reduction 2 Item Schematics ----------------- None Robot Schematics ------------------ None Fabricated ------------ Nothing Alien Tech Used ----------------- None Achievements -------------- None Challenges ------------ None Game ------ Seed AnalysisPlasmaBlaster Manual? 0 Play Time 00:19:53 Cumulative 3.5 hours Start 2024.03.31 @ 15:38:03 End 2024.04.01 @ 00:14:59 Sessions 2 Manual Loads 0 Difficulty Rogue Special Mode None Game No. 5 Rogue 5 Adventurer 0 Explorer 0 Win Type - Total 0 Types 0/0/0/0/0/0/0/0/0 Lore% 2 Gallery% 4 Achievement% 7 Wizard Run 0 Options --------- Layout 1 ASCII 0 Keyboard 0 Movement Numpad Keybinds 0 Fullscreen 0 Font 20/SmallcapsGlow Map View 50x35 Zoom Use 0% Tactical HUD 1 Map Filters NONE Filters NONE Steam 1 RUN: 7b03d84d-8538-40e2-ba9d-25572eca7373